bitfinex/quotes_BTCUSD_20241024
["timestamp","ask_amount","ask_price","bid_price","bid_amount"]
[1729792654978,0.76325517,67686.0,67675.0,0.00167]
[1729792655812,0.71719383,67686.0,67675.0,0.00167]
[1729792657836,0.6682583,67686.0,67675.0,0.00167]
[1729792658343,0.6682583,67686.0,67675.0,0.22279642]
[1729792658344,0.48468864,67686.0,67675.0,0.22279642]
[1729792658581,0.48468864,67686.0,67675.0,0.33669642]
[1729792658582,0.41318864,67686.0,67675.0,0.33669642]
[1729792658846,0.5637583,67686.0,67675.0,0.33669642]
[1729792659051,0.5657583,67686.0,67675.0,0.33669642]
[1729792659530,0.5657583,67686.0,67675.0,0.22279642]
[1729792659783,0.79446211,67686.0,67675.0,0.00167]
[1729792662355,0.6439583,67686.0,67675.0,0.00167]
[1729792662578,0.6419583,67686.0,67675.0,0.00167]
[1729792663463,0.49138864,67686.0,67675.0,0.00167]
[1729792663694,0.41318864,67686.0,67675.0,0.00167]
[1729792663938,0.41318864,67686.0,67675.0,0.22279642]
[1729792665592,0.41318864,67686.0,67676.0,0.0807]
[1729792668160,0.39824481,67686.0,67676.0,0.0807]
[1729792668791,0.40324481,67686.0,67675.0,0.00167]
[1729792669226,0.40324481,67686.0,67675.0,0.22279642]
[1729792669444,0.52381491,67686.0,67675.0,0.22279642]
[1729792669684,0.52881491,67686.0,67675.0,0.22279642]
[1729792669928,0.53875874,67686.0,67675.0,0.00167]
[1729792670159,0.53875874,67686.0,67675.0,0.22279642]
[1729792670787,0.147762,67676.0,67675.0,0.00167]
[1729792674230,0.39826581,67676.0,67675.0,0.00167]
[1729792681489,0.54425478,67676.0,67675.0,0.00167]
[1729792681748,0.69976827,67676.0,67675.0,0.00167]
[1729792681964,0.70176827,67676.0,67675.0,0.00167]
[1729792682439,0.69053153,67676.0,67675.0,1e-06]
[1729792684084,0.80098323,67676.0,67675.0,1e-06]
[1729792684287,0.69053153,67676.0,67675.0,1e-06]
[1729792684986,0.68853153,67676.0,67675.0,1e-06]
[1729792685192,0.84103534,67676.0,67675.0,1e-06]
[1729792685843,0.83903534,67676.0,67675.0,1e-06]
[1729792686500,0.83986134,67676.0,67675.0,1e-06]
[1729792687608,0.68935753,67676.0,67675.0,1e-06]
[1729792691429,0.69135753,67676.0,67675.0,1e-06]
[1729792691617,0.68935753,67676.0,67675.0,1e-06]
[1729792692257,0.69135753,67676.0,67675.0,1e-06]
[1729792692489,0.68935753,67676.0,67675.0,1e-06]
[1729792692657,0.83986134,67676.0,67675.0,1e-06]
[1729792693224,0.68935753,67676.0,67675.0,1e-06]
[1729792693915,0.44734404,67676.0,67675.0,1e-06]
[1729792697885,0.44234404,67676.0,67675.0,1e-06]
[1729792698448,0.44734404,67676.0,67675.0,1e-06]
[1729792699865,0.40409181,67676.0,67675.0,1e-06]
[1729792700052,0.55459562,67676.0,67675.0,1e-06]
[1729792701062,0.40409181,67676.0,67675.0,1e-06]
[1729792703231,0.40903564,67676.0,67675.0,1e-06]
[1729792703456,0.41403564,67676.0,67675.0,1e-06]
[1729792703682,0.41603564,67676.0,67675.0,1e-06]
[1729792704120,0.41403564,67676.0,67675.0,1e-06]
[1729792704486,0.62228574,67676.0,67675.0,1e-06]
[1729792704692,0.77278955,67676.0,67675.0,1e-06]
[1729792705328,0.62228574,67676.0,67675.0,1e-06]
[1729792705534,0.50816069,67676.0,67675.0,1e-06]
[1729792705742,0.51816069,67676.0,67675.0,1e-06]
[1729792706390,0.51321686,67676.0,67675.0,1e-06]
[1729792706568,0.51816069,67676.0,67675.0,1e-06]
[1729792707220,0.56717302,67676.0,67675.0,1e-06]
[1729792708083,0.67129807,67676.0,67675.0,1e-06]
[1729792708520,0.87013419,67676.0,67675.0,1e-06]
[1729792709016,1.00296895,67676.0,67675.0,1e-06]
[1729792710361,1.00096895,67676.0,67675.0,1e-06]
[1729792710570,0.86813419,67676.0,67675.0,1e-06]
[1729792710784,0.87013419,67676.0,67675.0,1e-06]
[1729792711220,0.147789,67664.0,67663.0,0.00167]
[1729792711438,0.50243592,67664.0,67663.0,0.00167]
[1729792711690,0.50737975,67664.0,67663.0,0.00167]
[1729792711926,0.51737975,67664.0,67663.0,0.00167]
[1729792712417,0.56441461,67664.0,67663.0,0.00167]
[1729792713133,0.60765883,67664.0,67663.0,0.00167]
[1729792713345,0.56441461,67664.0,67663.0,0.00167]
[1729792714803,0.57398211,67664.0,67663.0,0.00167]
[1729792716896,0.6172082,67664.0,67663.0,0.00167]
[1729792719249,0.57398211,67664.0,67663.0,0.00167]
[1729792720372,0.57397425,67664.0,67663.0,0.00167]
[1729792734565,0.63112748,67664.0,67663.0,0.00167]
[1729792737334,0.52696581,67664.0,67663.0,0.00167]
[1729792737759,0.50245448,67664.0,67663.0,0.00167]
[1729792738807,0.59096401,67664.0,67663.0,0.00167]
[1729792739167,0.50245448,67664.0,67663.0,0.00167]
[1729792739396,0.6130825,67664.0,67663.0,0.00167]
[1729792739713,0.61309741,67664.0,67663.0,0.00167]
[1729792739942,0.50245448,67664.0,67663.0,0.00167]
[1729792740786,0.61161615,67664.0,67663.0,0.00167]
[1729792741200,0.65486112,67664.0,67663.0,0.00167]
[1729792741423,0.72026187,67664.0,67663.0,0.00167]
[1729792741630,1.08453137,67664.0,67663.0,0.00167]
[1729792741815,0.86340495,67664.0,67663.0,0.00167]
[1729792742479,0.86140495,67664.0,67663.0,0.00167]
[1729792742705,0.35614734,67648.0,67647.0,0.22112642]
[1729792742912,0.60665115,67648.0,67647.0,0.22112642]
[1729792743127,0.1,67647.0,67643.0,0.0001001]
[1729792743344,0.29625434,67644.0,67643.0,0.0001001]
[1729792743548,0.31838468,67644.0,67643.0,0.0001001]
[1729792743969,0.25199367,67644.0,67643.0,0.0001001]
[1729792744383,0.44675089,67644.0,67643.0,0.0001001]
[1729792744590,0.40249748,67644.0,67643.0,0.0001001]
[1729792744787,0.4467505,67644.0,67643.0,0.0001001]
[1729792745015,0.147845,67638.0,67637.0,0.00167]
[1729792748604,0.147845,67638.0,67637.0,0.11339349]
[1729792748809,0.147845,67638.0,67637.0,0.26458954]
[1729792749492,0.14784,67641.0,67639.0,0.0821]
[1729792749699,0.14784,67641.0,67640.0,0.11842349]
[1729792750352,0.147838,67642.0,67640.0,0.11842349]
[1729792750572,0.147839,67641.0,67640.0,0.118423]
[1729792750772,0.295643,67649.0,67640.0,0.118423]
[1729792750773,0.147838,67642.0,67640.0,0.118423]
[1729792750945,0.147838,67642.0,67641.0,0.004623]
[1729792752589,0.147834,67644.0,67641.0,0.004623]
[1729792752809,0.147834,67643.0,67642.0,0.086423]
[1729792753567,0.295663,67645.0,67642.0,0.086423]
[1729792753716,0.147834,67643.0,67642.0,0.0818]
[1729792753922,0.147834,67643.0,67642.0,0.08642292]
[1729792755785,0.147834,67643.0,67642.0,0.08642304]
[1729792756800,0.147834,67643.0,67642.0,0.08807504]
[1729792758271,0.147834,67643.0,67642.0,0.083452]
[1729792759448,0.0442402,67653.0,67642.0,0.083452]
[1729792759641,0.22112642,67659.0,67649.0,0.15119605]
[1729792759642,0.36894542,67650.0,67649.0,0.15119605]
[1729792760065,0.295636,67651.0,67646.0,0.15119605]
[1729792760281,0.147825,67648.0,67646.0,0.15119605]
[1729792760679,0.14782,67650.0,67646.0,0.29902205]
[1729792761004,0.147821,67649.0,67648.0,0.15119605]
[1729792761201,0.147821,67649.0,67648.0,0.23379605]
[1729792761586,0.147821,67649.0,67648.0,0.23841853]
[1729792763144,0.147821,67649.0,67648.0,0.34741853]
[1729792765395,0.295636,67651.0,67648.0,0.34741853]
[1729792765597,0.147819,67650.0,67649.0,0.00462248]
[1729792770345,0.147821,67649.0,67648.0,0.29573416]
[1729792770742,0.147821,67649.0,67648.0,0.30035665]
[1729792771176,0.36894742,67649.0,67648.0,0.00462249]
[1729792771349,0.147826,67647.0,67646.0,0.0001001]
[1729792774354,0.147828,67646.0,67645.0,0.005]
[1729792774579,0.147832,67644.0,67643.0,0.006652]
[1729792774779,0.147832,67644.0,67643.0,0.00627476]
[1729792775000,0.147832,67644.0,67643.0,0.01127476]
[1729792775400,0.147832,67644.0,67643.0,0.00627476]
[1729792775631,0.147832,67644.0,67643.0,0.01127476]
[1729792777323,0.147832,67644.0,67643.0,0.01867117]
[1729792777749,0.147832,67644.0,67643.0,0.01367117]
[1729792778396,0.147832,67644.0,67643.0,0.001652]
[1729792778604,0.147832,67644.0,67643.0,0.01367118]
[1729792779032,0.147832,67644.0,67643.0,0.00627476]
[1729792779240,0.147832,67644.0,67643.0,0.01367137]
[1729792779460,0.147832,67644.0,67643.0,0.00627476]
[1729792781158,0.147832,67644.0,67643.0,0.001652]
[1729792781804,0.147832,67644.0,67643.0,0.00627521]
[1729792782037,0.147832,67644.0,67643.0,0.001652]
[1729792785310,0.147832,67644.0,67643.0,0.00627523]
[1729792785914,0.147832,67644.0,67643.0,0.00627511]
[1729792789286,0.147832,67644.0,67643.0,0.001652]
[1729792790554,0.147832,67644.0,67643.0,0.00627511]
[1729792792786,0.147832,67644.0,67643.0,0.001652]
[1729792792997,0.147832,67644.0,67643.0,0.00627508]
[1729792793419,0.147832,67644.0,67643.0,0.00627507]
[1729792793839,0.147832,67644.0,67643.0,0.001652]
[1729792794266,0.147832,67644.0,67643.0,0.00627516]
[1729792798372,0.295653,67647.0,67643.0,0.11040932]
[1729792798589,0.147832,67644.0,67643.0,0.10578616]
[1729792798819,0.147832,67644.0,67643.0,0.11780577]
[1729792799033,0.147832,67644.0,67643.0,0.11040917]
[1729792799251,0.51676442,67651.0,67643.0,0.1178058]
[1729792799252,0.295651,67648.0,67643.0,0.1178058]
[1729792799462,0.14783,67645.0,67644.0,0.01201964]
[1729792799679,0.14783,67645.0,67644.0,0.00462301]
[1729792800583,0.147832,67644.0,67643.0,0.10578616]
[1729792801200,0.22112642,67652.0,67643.0,0.10578616]
[1729792801465,0.147832,67644.0,67643.0,0.10874253]
[1729792801684,0.147832,67644.0,67643.0,0.10578616]
[1729792801889,0.147832,67644.0,67643.0,0.11780588]
[1729792802544,0.147832,67644.0,67643.0,0.01367172]
[1729792803013,0.147832,67644.0,67643.0,0.00627497]
[1729792804348,0.25196616,67644.0,67643.0,0.00627497]
[1729792804558,0.25196616,67644.0,67643.0,0.001652]
[1729792805209,0.19214598,67644.0,67643.0,0.001652]
[1729792805449,0.147832,67644.0,67643.0,0.001652]
[1729792805913,0.147832,67644.0,67643.0,0.11040932]
[1729792806334,0.147832,67644.0,67643.0,0.00627516]
[1729792807644,0.147832,67644.0,67643.0,0.10578616]
[1729792807894,0.147832,67644.0,67643.0,0.11040926]
[1729792808104,0.147831,67645.0,67643.0,0.11780602]
[1729792808337,0.147828,67646.0,67645.0,0.005]
[1729792808565,0.147828,67646.0,67645.0,0.01701986]
[1729792811649,0.147828,67646.0,67645.0,0.005]
[1729792811919,0.147828,67646.0,67645.0,0.01701916]
[1729792812399,0.147828,67646.0,67645.0,0.01201916]
[1729792812619,0.147828,67646.0,67645.0,0.00462275]
[1729792814853,0.226728,67646.0,67645.0,0.00462275]
[1729792815082,0.32673,67645.0,67644.0,0.00165]
[1729792815304,0.77614496,67645.0,67644.0,0.00165]
[1729792815659,1.11701521,67645.0,67644.0,0.00165]
[1729792815839,0.89788879,67645.0,67644.0,0.00165]
[1729792816104,1.0483926,67645.0,67644.0,0.00165]
[1729792816335,0.11694383,67643.0,67642.0,1e-07]
[1729792816597,0.83025863,67643.0,67642.0,1e-07]
[1729792816825,0.25278883,67638.0,67631.0,0.22112642]
[1729792817072,1.0747745,67638.0,67631.0,0.22112642]
[1729792817307,1.0747745,67638.0,67630.0,0.0178899]
[1729792817528,0.89859951,67638.0,67630.0,0.0178899]
[1729792818024,0.9054799,67638.0,67630.0,0.0178899]
[1729792818492,0.75473296,67638.0,67630.0,0.0178899]
[1729792818979,0.74978913,67638.0,67630.0,0.0178899]
[1729792819208,0.9896101,67638.0,67630.0,0.0178899]
[1729792819963,0.90110702,67638.0,67630.0,0.0178899]
[1729792820183,0.81540634,67638.0,67630.0,0.0178899]
[1729792820440,0.79327892,67638.0,67630.0,0.0178899]
[1729792821327,0.94378273,67638.0,67630.0,0.0178899]
[1729792821588,0.79327892,67638.0,67630.0,0.0178899]
[1729792822503,0.49145722,67638.0,67630.0,0.0178899]
[1729792822727,0.33172539,67638.0,67630.0,0.0178899]
[1729792823228,0.23172539,67638.0,67630.0,0.0178899]
[1729792824187,0.00688039,67638.0,67637.0,0.3972917]
[1729792824451,0.295674,67643.0,67638.0,0.005]
[1729792824708,0.147836,67643.0,67638.0,0.015]
[1729792825210,0.22112642,67653.0,67640.0,0.15631789]
[1729792825423,0.36895642,67646.0,67643.0,0.15131789]
[1729792825745,0.147828,67646.0,67643.0,0.15131789]
[1729792825986,0.29563,67652.0,67643.0,0.15131789]
[1729792826223,0.147827,67647.0,67644.0,0.00295634]
[1729792826440,0.26534353,67660.0,67649.0,0.300642]
[1729792826718,0.22112642,67657.0,67652.0,0.295627]
[1729792826920,0.22112642,67657.0,67654.0,0.15131789]
[1729792827336,0.295604,67658.0,67654.0,0.15131789]
[1729792827569,0.295595,67661.0,67654.0,0.15131789]
[1729792827976,0.147803,67658.0,67654.0,0.15131789]
[1729792828185,0.295595,67661.0,67654.0,0.15131789]
[1729792828186,0.147805,67657.0,67654.0,0.15131789]
[1729792828364,0.295599,67659.0,67654.0,0.15131789]
[1729792828627,0.295586,67662.0,67654.0,0.15131789]
[1729792828830,0.000826,67663.0,67654.0,0.15131789]
[1729792829049,0.147805,67657.0,67656.0,0.15131789]
[1729792829264,0.147805,67657.0,67653.0,0.15131789]
[1729792829477,0.000826,67663.0,67656.0,0.15131789]
[1729792829684,0.295586,67662.0,67659.0,0.15131789]
[1729792829900,0.147797,67660.0,67659.0,0.15131789]
[1729792830290,0.295591,67661.0,67656.0,0.15631789]
[1729792830538,0.147804,67657.0,67656.0,0.005]
[1729792830728,0.1478,67659.0,67656.0,0.005]
[1729792830931,0.443386,67661.0,67656.0,0.15631789]
[1729792831135,0.147802,67658.0,67656.0,0.15631789]
[1729792831365,0.000826,67663.0,67656.0,0.15631789]
[1729792831575,0.148617,67663.0,67662.0,0.005]
[1729792832173,0.000826,67663.0,67662.0,0.005]
[1729792832594,0.000826,67663.0,67662.0,0.00795556]
[1729792833228,0.000826,67663.0,67662.0,0.005]
[1729792835088,0.000826,67663.0,67662.0,0.152793]
[1729792835307,0.000826,67663.0,67662.0,0.15574846]
[1729792835738,0.000826,67663.0,67662.0,0.31625227]
[1729792835941,0.000826,67663.0,67662.0,0.41839681]
[1729792837192,0.000826,67663.0,67662.0,0.27060381]
[1729792837399,0.148617,67663.0,67662.0,0.01]
[1729792837825,0.148617,67663.0,67662.0,0.005]
[1729792838247,0.147804,67657.0,67656.0,0.005]
[1729792838462,0.147797,67660.0,67655.0,0.005]
[1729792838674,0.000826,67663.0,67657.0,0.005]
[1729792838878,0.147804,67657.0,67656.0,0.005]
[1729792839932,0.295599,67660.0,67659.0,0.005]
[1729792840149,0.443396,67660.0,67659.0,0.005]
[1729792840360,0.295589,67662.0,67659.0,0.005]
[1729792840619,0.295589,67662.0,67661.0,0.15131789]
[1729792840620,0.147793,67662.0,67661.0,0.15131789]
[1729792841069,0.000826,67663.0,67661.0,0.29911189]
[1729792842036,0.000826,67663.0,67661.0,0.15131789]
[1729792842272,0.147793,67662.0,67660.0,0.005]
[1729792842529,0.147797,67660.0,67659.0,0.005]
[1729792842752,0.000826,67663.0,67659.0,0.005]
[1729792842968,0.147798,67660.0,67658.0,0.005]
[1729792843192,0.147798,67660.0,67658.0,0.15631789]
[1729792843860,0.147799,67659.0,67658.0,0.005]
[1729792844268,0.296408,67663.0,67658.0,0.005]
[1729792844474,0.147796,67661.0,67658.0,0.005]
[1729792844890,0.147798,67660.0,67658.0,0.005]
[1729792845545,0.147799,67659.0,67658.0,0.005]
[1729792846198,0.295586,67662.0,67658.0,0.005]
[1729792846405,0.000826,67663.0,67658.0,0.005]
[1729792846614,0.147798,67660.0,67658.0,0.005]
[1729792846821,0.147799,67659.0,67658.0,0.005]
[1729792847463,0.147797,67661.0,67658.0,0.005]
[1729792847669,0.147795,67661.0,67658.0,0.005]
[1729792848106,0.147795,67661.0,67659.0,0.15131789]
[1729792848567,0.443389,67661.0,67659.0,0.15131789]
[1729792848775,0.147797,67660.0,67659.0,0.15131789]
[1729792849182,0.147797,67660.0,67658.0,0.005]
[1729792849815,0.295592,67661.0,67658.0,0.005]
[1729792850025,0.147799,67659.0,67658.0,0.005]
[1729792850231,0.149449,67659.0,67658.0,0.005]
[1729792850677,0.00165,67659.0,67658.0,0.005]
[1729792850882,0.149449,67659.0,67658.0,0.005]
[1729792851788,0.147802,67658.0,67657.0,0.005]
[1729792852048,0.29725,67659.0,67651.0,0.005]
[1729792852288,0.22112642,67658.0,67645.0,0.00739528]
[1729792852501,0.44346,67650.0,67649.0,0.005]
[1729792852709,0.147819,67650.0,67649.0,0.005]
[1729792852918,0.295636,67651.0,67648.0,0.005]
[1729792853122,0.295631,67652.0,67648.0,0.005]
[1729792853327,0.147821,67649.0,67648.0,0.005]
[1729792853532,0.147819,67650.0,67649.0,0.005]
[1729792854351,0.147819,67650.0,67649.0,0.00962244]
[1729792855612,0.147819,67650.0,67649.0,0.00462244]
[1729792856643,0.147828,67646.0,67645.0,0.15131789]
[1729792856850,0.147828,67646.0,67645.0,0.0073959]
[1729792857058,0.147828,67646.0,67645.0,0.01701833]
[1729792857266,0.147828,67646.0,67645.0,0.00962243]
[1729792857486,0.147828,67646.0,67645.0,0.01201833]
[1729792857731,0.147828,67646.0,67645.0,0.00462243]
[1729792858385,0.295653,67647.0,67642.0,0.000825]
[1729792858386,0.147834,67643.0,67642.0,0.000825]
[1729792858591,0.147834,67643.0,67642.0,0.0054479]
[1729792858773,0.147834,67643.0,67642.0,0.000825]
[1729792860683,0.147819,67650.0,67642.0,0.15214289]
[1729792860917,0.22112642,67648.0,67642.0,0.15509932]
[1729792861125,0.0797,67651.0,67642.0,0.15509932]
[1729792861126,0.147834,67643.0,67642.0,0.15214289]
[1729792861355,0.147833,67644.0,67642.0,0.15214289]
[1729792861568,0.295659,67646.0,67642.0,0.15214289]
[1729792861793,0.147834,67643.0,67642.0,0.15214289]
[1729792862008,0.0797,67651.0,67642.0,0.15214289]
[1729792862258,0.0797,67651.0,67642.0,0.15509932]
[1729792862259,0.147834,67643.0,67642.0,0.15509932]
[1729792862491,0.22112642,67650.0,67642.0,0.15214289]
[1729792862727,0.147834,67643.0,67642.0,0.15214289]
[1729792862950,0.147834,67643.0,67642.0,0.000825]
[1729792865311,0.1546207,67643.0,67642.0,0.000825]
[1729792870931,0.0067867,67643.0,67642.0,0.15214289]
[1729792871179,0.147834,67643.0,67642.0,0.15214289]
[1729792871381,0.15460967,67643.0,67642.0,0.15214289]
[1729792871789,0.15460967,67643.0,67642.0,0.15676569]
[1729792871992,0.15460967,67643.0,67642.0,0.15214289]
[1729792872202,0.15460967,67643.0,67642.0,0.000825]
[1729792878731,0.147834,67643.0,67642.0,0.000825]
[1729792881125,0.222834,67643.0,67642.0,0.000825]
[1729792882383,0.147834,67643.0,67642.0,0.000825]
[1729792884496,0.147834,67643.0,67642.0,0.00544805]
[1729792884704,0.147834,67643.0,67642.0,0.000825]
[1729792884949,0.295665,67645.0,67642.0,0.00544809]
[1729792885160,0.147819,67650.0,67642.0,0.15890832]
[1729792885381,0.00165,67651.0,67646.0,0.15131789]
[1729792885382,0.147827,67647.0,67646.0,0.15131789]
[1729792885594,0.00165,67651.0,67648.0,0.0831]
[1729792885804,0.00165,67651.0,67650.0,0.29913689]
[1729792886061,0.00165,67651.0,67650.0,0.30375998]
[1729792886484,0.00165,67651.0,67650.0,0.46926379]
[1729792886698,0.00165,67651.0,67650.0,0.47665904]
[1729792888187,0.00165,67651.0,67650.0,0.46926379]
[1729792888388,0.00165,67651.0,67650.0,0.47665904]
[1729792888591,0.00165,67651.0,67650.0,0.46926379]
[1729792888797,0.00165,67651.0,67650.0,0.47665904]
[1729792888998,0.00165,67651.0,67650.0,0.4766578]
[1729792889235,0.00165,67651.0,67650.0,0.46926266]
[1729792889437,0.00165,67651.0,67650.0,0.4766578]
[1729792889639,0.00165,67651.0,67650.0,0.46926266]
[1729792889750,0.00165,67651.0,67650.0,0.4766578]
[1729792889980,0.00165,67651.0,67650.0,0.46926266]
[1729792892620,0.00165,67651.0,67650.0,0.46926262]
[1729792893051,0.00165,67651.0,67650.0,0.46926261]
[1729792895700,0.149467,67651.0,67650.0,0.17012572]
[1729792896130,0.00165,67651.0,67650.0,0.46926261]
[1729792896365,0.00165,67651.0,67650.0,0.4646407]
[1729792896581,0.00165,67651.0,67650.0,0.46926265]
[1729792896783,0.00165,67651.0,67650.0,0.32144365]
[1729792897808,0.00165,67651.0,67650.0,0.46926265]
[1729792898229,0.00165,67651.0,67650.0,0.32144365]
[1729792898425,0.00165,67651.0,67650.0,0.46926265]
[1729792899992,0.00165,67659.0,67658.0,0.278402]
[1729792900224,0.00165,67659.0,67658.0,0.81481899]
[1729792900457,0.00165,67659.0,67658.0,0.94225866]
[1729792900909,0.00165,67659.0,67658.0,0.94469994]
[1729792901131,0.00165,67659.0,67658.0,0.94225866]
[1729792901394,0.00165,67659.0,67658.0,0.94469924]
[1729792901608,0.22112642,67682.0,67662.0,0.164793]
[1729792901824,0.295506,67681.0,67662.0,0.60458686]
[1729792902035,0.147757,67679.0,67662.0,0.60163177]
[1729792902682,0.147758,67678.0,67662.0,0.60163177]
[1729792902889,0.295506,67681.0,67662.0,0.60163177]
[1729792903730,0.147756,67679.0,67662.0,0.60163177]
[1729792904180,0.295506,67681.0,67662.0,0.60163177]
[1729792904366,0.147755,67680.0,67662.0,0.60163177]
[1729792904577,0.147755,67680.0,67662.0,0.59963177]
[1729792904790,0.22112642,67682.0,67662.0,0.60163177]
[1729792905001,0.22112642,67682.0,67662.0,0.78743177]
[1729792906489,0.22112642,67682.0,67674.0,0.371567]
[1729792906702,0.22112642,67682.0,67674.0,0.52669276]
[1729792906911,0.22112642,67682.0,67674.0,0.53408788]
[1729792907539,0.22112642,67682.0,67674.0,0.52669276]
[1729792907751,0.22112642,67682.0,67674.0,0.53408466]
[1729792910184,0.0125,67688.0,67674.0,0.53608466]
[1729792910593,0.0125,67688.0,67674.0,0.53408466]
[1729792911678,0.0125,67688.0,67674.0,0.63408221]
[1729792914345,0.22112642,67682.0,67674.0,0.63408221]
[1729792914547,0.22112642,67682.0,67674.0,0.5766001]
[1729792915109,0.36887542,67682.0,67674.0,0.5766001]
[1729792915286,0.36887542,67682.0,67674.0,0.5716001]
[1729792915287,0.0804,67678.0,67674.0,0.5716001]
[1729792915527,0.0804,67678.0,67674.0,0.5766001]
[1729792915704,0.0804,67678.0,67674.0,0.57660021]
[1729792919037,0.0804,67678.0,67674.0,0.57660026]
[1729792919864,0.22112642,67682.0,67674.0,0.57660026]
[1729792920266,0.0824,67683.0,67674.0,0.59960026]
[1729792920467,0.22112642,67681.0,67674.0,0.59960026]
[1729792921247,0.0889,67688.0,67674.0,0.59960026]
[1729792921494,0.0889,67688.0,67674.0,0.67460026]
[1729792922133,0.0889,67688.0,67674.0,0.67903405]
[1729792922344,0.0889,67688.0,67674.0,0.67703405]
[1729792922575,0.0889,67688.0,67674.0,0.67903462]
[1729792923237,0.0889,67688.0,67674.0,0.67660026]
[1729792924604,0.0889,67688.0,67674.0,0.67460026]
[1729792925006,0.0889,67688.0,67674.0,0.6625887]
[1729792925225,0.0889,67688.0,67674.0,0.67459961]
[1729792925582,0.0889,67688.0,67674.0,0.67659961]
[1729792927824,0.0889,67688.0,67674.0,0.67459961]
[1729792928085,0.0889,67688.0,67674.0,0.67659961]
[1729792928813,0.0889,67688.0,67674.0,0.6645887]
[1729792929043,0.0889,67688.0,67674.0,0.67659966]
[1729792929956,0.0889,67688.0,67674.0,0.82791755]
[1729792929957,0.0125,67688.0,67674.0,0.82791755]
[1729792930171,0.0125,67688.0,67675.0,0.287765]
[1729792930386,0.0125,67688.0,67675.0,0.45027977]
[1729792932594,0.0125,67688.0,67675.0,0.48208252]
[1729792932841,0.0125,67688.0,67675.0,0.49409232]
[1729792933088,0.0125,67688.0,67675.0,0.51599917]
[1729792933546,0.0125,67688.0,67675.0,0.67823913]
[1729792933758,0.0125,67688.0,67675.0,0.45027861]
[1729792934477,0.0125,67688.0,67675.0,0.67831515]
[1729792935386,0.0125,67688.0,67675.0,0.61244977]
[1729792935607,0.0125,67688.0,67675.0,0.65832114]
[1729792936056,0.0805,67692.0,67675.0,0.61244977]
[1729792936281,0.0805,67692.0,67675.0,0.64630993]
[1729792936527,0.0805,67692.0,67675.0,0.73373928]
[1729792938162,0.0805,67692.0,67675.0,0.73173928]
[1729792938397,0.0805,67692.0,67675.0,0.52369816]
[1729792938636,0.0805,67692.0,67675.0,0.56957187]
[1729792939482,0.0805,67692.0,67675.0,0.49167051]
[1729792939680,0.0805,67692.0,67675.0,0.50568059]
[1729792940837,0.0805,67692.0,67675.0,0.49367051]
[1729792941236,0.1049,67688.0,67675.0,0.49167051]
[1729792941463,0.0821,67681.0,67675.0,0.4457968]
[1729792942069,0.0821,67681.0,67675.0,0.45780812]
[1729792944168,0.0821,67681.0,67675.0,0.4457968]
[1729792944416,0.0821,67681.0,67675.0,0.45780826]
[1729792945396,0.0821,67681.0,67675.0,0.42528027]
[1729792945662,0.341388,67676.0,67675.0,0.01201146]
[1729792947250,0.341388,67676.0,67675.0,0.00461979]
[1729792948373,0.147789,67664.0,67663.0,0.00165]
[1729792948588,0.334689,67664.0,67663.0,0.013665]
[1729792949201,0.334689,67664.0,67663.0,0.00627115]
[1729792949407,0.1869,67664.0,67663.0,0.00627115]
[1729792949829,0.334689,67664.0,67663.0,0.00627115]
[1729792950453,0.334689,67664.0,67663.0,0.00165]
[1729792951209,0.1869,67664.0,67663.0,0.00165]
[1729792951594,0.1869,67664.0,67663.0,0.30538011]
[1729792951813,0.1869,67664.0,67663.0,0.30538009]
[1729792952045,0.1131,67672.0,67667.0,0.005]
[1729792952244,0.079,67670.0,67669.0,0.147778]
[1729792952445,0.079,67670.0,67669.0,0.4495997]
[1729792952648,0.36889242,67675.0,67669.0,0.3064426]
[1729792952649,0.22112642,67675.0,67669.0,0.3064426]
[1729792952874,0.22112642,67675.0,67674.0,0.15131789]
[1729792952875,0.30012642,67675.0,67674.0,0.15131789]
[1729792953079,0.079,67675.0,67674.0,0.4495887]
[1729792954900,0.079,67675.0,67674.0,0.45420927]
[1729792955304,0.079,67675.0,67674.0,0.4495887]
[1729792955676,0.079,67675.0,67674.0,0.29827081]
[1729792956910,0.079,67675.0,67674.0,0.15050381]
[1729792957116,0.079,67675.0,67674.0,0.15512428]
[1729792958373,0.079,67675.0,67674.0,0.15050381]
[1729792958521,0.079,67675.0,67674.0,0.15512434]
[1729792959228,0.000826,67676.0,67675.0,0.162765]
[1729792959427,0.000826,67676.0,67675.0,0.31788934]
[1729792959830,0.148588,67676.0,67675.0,0.17012434]
[1729792959987,0.000826,67676.0,67675.0,0.17012434]
[1729792960391,0.148588,67676.0,67675.0,0.00462054]
[1729792960613,0.147773,67671.0,67670.0,0.00462054]
[1729792960817,0.147773,67671.0,67670.0,0.15512435]
[1729792961871,0.181526,67676.0,67673.0,0.005]
[1729792961872,0.076526,67676.0,67673.0,0.005]
[1729792962059,0.076526,67676.0,67674.0,0.15050381]
[1729792962675,0.076526,67676.0,67674.0,0.29826981]
[1729792962878,0.076526,67676.0,67675.0,0.147765]
[1729792963080,0.000826,67676.0,67675.0,0.30370353]
[1729792963347,0.000826,67676.0,67675.0,0.00462064]
[1729792963560,0.148588,67676.0,67675.0,0.00462064]
[1729792965121,0.330888,67676.0,67675.0,0.00462064]
[1729792965242,0.104926,67676.0,67665.0,0.0073929]
[1729792965456,0.147782,67667.0,67666.0,0.01201375]
[1729792965683,0.37373,67675.0,67665.0,0.005]
[1729792965684,0.14778,67668.0,67665.0,0.147786]
[1729792965942,0.14778,67668.0,67666.0,0.0170145]
[1729792966173,0.22298,67668.0,67667.0,0.0120145]
[1729792966404,0.22298,67668.0,67667.0,0.00462096]
[1729792966605,0.147784,67667.0,67665.0,0.00739364]
[1729792966814,0.147784,67667.0,67666.0,0.00462103]
[1729792967429,0.147784,67667.0,67666.0,0.0120147]
[1729792969183,0.147784,67667.0,67663.0,0.15444]
[1729792969184,0.147789,67664.0,67663.0,0.00165]
[1729792969386,0.147789,67664.0,67663.0,0.01366546]
[1729792969387,0.229289,67664.0,67663.0,0.01366546]
[1729792969594,0.332689,67664.0,67663.0,0.00627133]